Cogmind - Beta 15 @@@ ROGUE MODE // 2025.05.29 @ 00:02:13 Player: dorusv Result: Destroyed by Y-45 Defender with Heavy Assault Rifle Performance ------------- Evolutions (1) 500 Regions Visited (4) 800 Robots Destroyed (18) 90 Value Destroyed (453) 453 Prototype IDs (1) 20 Alien Tech Used (0) 0 Bonus (95) 95 TOTAL SCORE: 1958 Bonus ------- Follower Combat Kills 95 Cogmind --------- Core Integrity 0/400 Matter 300/300 Energy 430/430 System Corruption 2% Temperature Danger (459) Movement Walking (90) Location -9/Storage Parts ------- > --- POWER (2) -------- Improved Ion Engine Improved Ion Engine > --- PROPULSION (2) --- VSS Leg VSS Leg > --- UTILITY (3) ------ Seismic Detector > --- WEAPON (2) ------- Beam Rifle > --- INVENTORY (5) ---- Flight Unit Heavy EM Pulse Gun Beam Rifle Light Assault Rifle Maul Peak State ------------ > --- POWER ------------ Improved Ion Engine Improved Ion Engine > --- PROPULSION ------- VSS Leg VSS Leg > --- UTILITY ---------- Seismic Detector Weapon Shielding Light Armor Plating > --- WEAPON ----------- Small Laser Beam Rifle > --- INVENTORY -------- Flight Unit Beam Rifle Light Assault Rifle [Rating: 16] Favorites ----------- Power Light Ion Engine Engine Light Ion Engine Propulsion Aluminum Leg Leg Aluminum Leg Flight Unit Flight Unit Utility Seismic Detector Device Seismic Detector Storage Small Storage Unit Protection Light Armor Plating Weapon Light Assault Rifle Energy Gun Small Laser Ballistic Gun Light Assault Rifle Build | -11 -10 -10 -9 -9 ------- Run | Yrd Mat Min Mat Sto Slots Evolved 2 | . . . 2 . Power 1 | . . . 1 . Propulsion . | . . . . . Utility 1 | . . . 1 . Weapon . | . . . . . Parts Attached 29 | 7 2 2 5 13 Power 5 | 1 . 1 . 3 Engine 5 | 1 . 1 . 3 Core . | . . . . . Reactor . | . . . . . Propulsion 11 | 2 2 1 4 2 Treads . | . . . . . Leg 9 | 2 2 1 2 2 Wheel . | . . . . . Hover . | . . . . . Flight 2 | . . . 2 . Utility 8 | 2 . . 1 5 Device 5 | 1 . . 1 3 Storage 1 | 1 . . . . Processor . | . . . . . Hackware . | . . . . . Protection 2 | . . . . 2 Artifact . | . . . . . Weapon 5 | 2 . . . 3 Energy Gun 2 | . . . . 2 Energy Cannon . | . . . . . Ballistic Gun 3 | 2 . . . 1 Ballistic Cannon . | . . . . . Launcher . | . . . . . Special Weapon . | . . . . . Impact Weapon . | . . . . . Slashing Weapon . | . . . . . Piercing Weapon . | . . . . . Special Melee Weapon . | . . . . . Unidentified Prototypes 1 | . . . . 1 Parts Lost 10 | . . . . 10 Power 1 | . . . . 1 Propulsion 2 | . . . . 2 Utility 4 | . . . . 4 Weapon 3 | . . . . 3 Highest Loss Streak 5 | . . . . 5 To Critical Strikes . | . . . . . Average Backups 6 | 4 7 8 7 4 Power . | . 1 . . . Propulsion 3 | 2 4 5 4 2 Utility . | . . . 1 . Weapon 1 | . 1 2 2 1 Tool/Special . | . . . . . Unused Backups 11 | . 1 . 3 7 Power . | . . . . . Propulsion 5 | . 1 . 1 3 Utility 2 | . . . 2 . Weapon 4 | . . . . 4 Tool/Special . | . . . . . Average Slot Usage (%) 89 | . 100 100 85 70 Engine 14 | . 14 14 11 15 Leg 20 | . 28 28 14 9 Flight 2 | . . . 6 4 Device 13 | . 14 14 19 10 Storage 9 | . 14 14 11 1 Protection 2 | . . . . 9 Energy Gun 4 | . . . . 13 Ballistic Gun 20 | . 28 28 22 5 Peak Build Rating 16 | 7 7 11 15 16 Average Rating 9 | 5 7 10 12 11 On Entrance 7 | . 7 7 11 11 Naked Turns 25 | . . . . 25 Heaviest Build 23 | 12 12 12 13 23 Greatest Support 32 | 20 20 30 32 24 Greatest Overweight (x) 5 | . . . 3 5 Average Overweight (x) . | . . . . . Largest Inventory Capacity 8 | 8 8 8 8 8 Average Capacity 7 | 7 8 8 8 5 Most Carried 8 | 6 8 8 8 8 Average Carried 6 | 4 7 7 7 4 Final Capacity 8 | 8 8 8 8 5 Final Carried 8 | 6 8 8 8 5 Class Distribution -------------------- 79% | Mutant 20% | Scavenger-Mutant Dominant Class ---------------- Mutant | -10/Materials Mutant | -10/Mines Mutant | -9/Materials Scavenger-Mutant | -9/Storage Resources | -11 -10 -10 -9 -9 ----------- Run | Yrd Mat Min Mat Sto Matter Collected 607 | 290 45 43 53 176 Remotely . | . . . . . Salvage Created 602 | 39 79 . 164 320 Parts 45 | 7 4 . 12 22 Haulers Intercepted . | . . . . . Recyclers Shooed 1 | . . . . 1 Parts Field Recycled . | . . . . . Retrieved Matter . | . . . . . Parts Self-Destructed . | . . . . . Prevented . | . . . . . Kills | -11 -10 -10 -9 -9 ------- Run | Yrd Mat Min Mat Sto Combat Hostiles Destroyed 14 | . 2 . 5 7 Guns 14 | . 2 . 5 7 Classes Destroyed 6 | 2 1 . 1 2 Worker 1 | 1 . . . . Tunneler 2 | 1 . . 1 . Watcher 1 | . . . . 1 Swarmer 5 | . . . 3 2 Grunt 6 | . 2 . 2 2 Sentry 3 | . . . . 3 Best Kill Streak 6 | 1 2 . 6 3 Combat Bots Only 5 | . 2 . 5 2 Max Kills in Single Turn 1 | 1 1 . 1 1 Gunslinging . | . . . . . Exploded . | . . . . . Melee . | . . . . . Uniques/NPCs Destroyed . | . . . . . Combat | -11 -10 -10 -9 -9 -------- Run | Yrd Mat Min Mat Sto Hostile Shots Fired 153 | . 15 4 23 111 Missed 38 | . 4 1 4 29 Hits 115 | . 11 3 19 82 Projectile 115 | . 11 3 19 82 Critical Strikes 3 | . 2 . . 1 Damage Taken 1245 | . 141 54 164 886 Core 421 | . 11 . 34 376 Absorbed by Shields . | . . . . . Redirected to Shielding 23 | . . . . 23 Core Remaining (%) 97 | 100 . 95 . . Volleys Fired 57 | 5 8 4 13 27 Largest 2 | 2 2 2 2 2 Hottest 96 | 40 40 40 40 96 Shots Fired 104 | 10 17 8 26 43 Gun 104 | 10 17 8 26 43 Cannon . | . . . . . Launcher . | . . . . . Special . | . . . . . Kinetic 76 | 10 17 8 26 15 Thermal 28 | . . . . 28 Explosive . | . . . . . Electromagnetic . | . . . . . Robot Hit Streak 17 | 2 9 6 13 17 Robot Miss Streak 6 | 4 1 . 6 4 Penetration Max . | . . . . . Secondary Targets 2 | . 1 . 1 . Max Gunslinging Chain 1 | . 1 . 1 . Shots Hit Robots 64 | 3 12 6 13 30 Core Hits 34 | 3 5 3 8 15 Critical Kills . | . . . . . Critical Parts Destroyed . | . . . . . Critical Strikes 1 | . . . . 1 Burn 1 | . . . . 1 Melee Attacks . | . . . . . Impact . | . . . . . Slashing . | . . . . . Piercing . | . . . . . Sneak Attacks . | . . . . . Combat Hostiles . | . . . . . Follow-up Attacks . | . . . . . Damage Inflicted 727 | 36 127 70 149 345 Guns 713 | 36 127 64 146 340 Cannons . | . . . . . Explosions . | . . . . . Melee . | . . . . . Ramming 14 | . . 6 3 5 Kinetic 435 | 36 127 64 146 62 Thermal 278 | . . . . 278 Explosive . | . . . . . Electromagnetic . | . . . . . Impact . | . . . . . Slashing . | . . . . . Piercing . | . . . . . Highest Corruption 2 | . 1 1 2 2 Average Corruption 1 | . 1 1 2 2 Corruption Purged . | . . . . . Corruption Blocked . | . . . . . Effects 8 | . 1 . . 7 Message Errors 5 | . . . . 5 Energy Discharges 1 | . . . . 1 Misfires 1 | . 1 . . . Weapon Failures 1 | . . . . 1 Overload Shots . | . . . . . Overflow Damage . | . . . . . Projectiles . | . . . . . Explosions . | . . . . . Melee . | . . . . . Knockbacks . | . . . . . Impact . | . . . . . Kinetic . | . . . . . Secondary . | . . . . . Self-Inflicted Damage 1 | . . . 1 . Shots . | . . . . . Rammed 1 | . . . 1 . Targets Rammed 5 | . . 1 1 3 Kicked 4 | . . 1 . 3 Crushed . | . . . . . Highest Temperature 450 | . 48 . 3 450 Average Temperature 93 | . 19 . 3 121 Received Heat Transfer 345 | . 120 27 18 180 Effects 1 | . . . . 1 Shutdowns 1 | . . . . 1 Siege Activations . | . . . . . Martial Activations . | . . . . . Shielding Activations . | . . . . . Robots Disrupted . | . . . . . Combat Hostiles . | . . . . . Robots Corrupted . | . . . . . Combat Hostiles . | . . . . . Parts Fried . | . . . . . Impact Corruptions . | . . . . . Robots Melted . | . . . . . Combat Hostiles . | . . . . . Parts Melted 1 | . . . . 1 Heat Transferred 745 | . . . . 745 Parts Sabotaged . | . . . . . Parts Stolen . | . . . . . Parts Stripped . | . . . . . Power Chain Reactions . | . . . . . Alert | -11 -10 -10 -9 -9 ------- Run | Yrd Mat Min Mat Sto Maximum Alert Level . | . . . . . Low Security (%) 100 | 100 100 100 100 100 Level 1 . | . . . . . Level 2 . | . . . . . Level 3 . | . . . . . Level 4 . | . . . . . Level 5 . | . . . . . High Security . | . . . . . Max Security . | . . . . . Peak Influence 105 | 5 40 56 105 60 Initial 27 | . . 3 . 27 Average 15 | . 5 17 46 16 Influence Increases 496 | 10 58 115 125 188 Destroy 0b10 Robot/C 340 | . 40 60 100 140 Destroy 0b10 Robot/NC 20 | 10 . . 5 5 Destroy Leader 92 | . 10 20 20 42 Allied During Kill 5 | . . 5 . . Successful Hack 8 | . 8 . . . Disable Machine 30 | . . 30 . . Destroy Structure 1 | . . . . 1 Influence Decreases 479 | 10 50 123 60 236 Entered New Map 43 | . . 5 . 38 Time Decay 358 | 10 50 98 60 140 Lost Part 58 | . . . . 58 Lost Ally 20 | . . 20 . . Squads Dispatched 2 | . . . 1 1 Investigation . | . . . . . Extermination . | . . . . . Reinforcement 2 | . . . 1 1 Assault . | . . . . . Garrison . | . . . . . Intercept . | . . . . . Searches Triggered . | . . . . . Construction Impeded . | . . . . . Haulers Reinforced . | . . . . . Active Scanning Responses . | . . . . . Cargo Convoy Interrupts . | . . . . . Stealth | -11 -10 -10 -9 -9 --------- Run | Yrd Mat Min Mat Sto Distress Signals 2 | . . . 1 1 Communications Jammed 1 | . . . . 1 Distress Signals 1 | . . . . 1 Times Spotted 35 | . 4 5 7 19 Peak Tracking Total 5 | . 2 2 5 5 Tactical Retreats . | . . . . . Traps | -11 -10 -10 -9 -9 ------- Run | Yrd Mat Min Mat Sto Traps Triggered . | . . . . . Indirectly . | . . . . . Trap Hack Attempts . | . . . . . Triggered . | . . . . . Disarmed . | . . . . . Reprogrammed . | . . . . . Reused . | . . . . . Traps Extracted . | . . . . . Installed . | . . . . . Triggered . | . . . . . Machines | -11 -10 -10 -9 -9 ---------- Run | Yrd Mat Min Mat Sto Machines Disabled 2 | . . 2 . . Max in Single Turn . | . . . . . Machines Repaired . | . . . . . Machines Dismantled . | . . . . . Machines Sabotaged . | . . . . . Overloaded Fab Kills . | . . . . . Hacking | -11 -10 -10 -9 -9 --------- Run | Yrd Mat Min Mat Sto Machines Accessed 2 | . 2 . . . Terminals 2 | . 2 . . . Fabricators . | . . . . . Repair Stations . | . . . . . Recycling Units . | . . . . . Scanalyzers . | . . . . . Garrison Access . | . . . . . Total Hacks 9 | . 9 . . . Successful 1 | . 1 . . . Failed 8 | . 8 . . . Catastrophic 2 | . 2 . . . Database Lockouts . | . . . . . Manual 10 | . 9 . . 1 Terminals 9 | . 9 . . . Fabricators . | . . . . . Repair Stations . | . . . . . Recycling Units . | . . . . . Scanalyzers . | . . . . . Garrison Access . | . . . . . Terminal Hacks 1 | . 1 . . . Branch Access Points 1 | . 1 . . . Fabricator Hacks . | . . . . . Repair Station Hacks . | . . . . . Recycling Unit Hacks . | . . . . . Scanalyzer . | . . . . . Garrison Access Hacks . | . . . . . Unauthorized Hacks . | . . . . . Terminals . | . . . . . Fabricators . | . . . . . Repair Stations . | . . . . . Recycling Units . | . . . . . Scanalyzers . | . . . . . Garrison Access . | . . . . . Data Cores Recovered . | . . . . . Used . | . . . . . Hacking Detections 2 | . 2 . . . Full Trace Events 2 | . 2 . . . Feedback Events 1 | . 1 . . . Corruption 1 | . 1 . . . Feedback Blocked . | . . . . . Robot Schematics Acquired . | . . . . . Robots Built . | . . . . . Authchips . | . . . . . Time . | . . . . . Total Robot Build Rating . | . . . . . Part Schematics Acquired . | . . . . . Parts Built . | . . . . . Authchips . | . . . . . Time . | . . . . . Total Part Build Rating . | . . . . . Parts Repaired . | . . . . . Time . | . . . . . Parts Recycled . | . . . . . Recycled Matter . | . . . . . Retrieved Matter . | . . . . . Retrieved Components . | . . . . . Parts Scanalyzed . | . . . . . Part Schematics Acquired . | . . . . . Parts Damaged . | . . . . . Bothacking | -11 -10 -10 -9 -9 ------------ Run | Yrd Mat Min Mat Sto Used RIF Installer . | . . . . . Robots Hacked . | . . . . . Non-combat . | . . . . . Combat . | . . . . . Robot Hacks Applied . | . . . . . Relay Couplers Released . | . . . . . Fabnet Peak Effective % . | . . . . . Robots Rewired . | . . . . . Allies Hacked . | . . . . . Hacks Repelled . | . . . . . Allies | -11 -10 -10 -9 -9 -------- Run | Yrd Mat Min Mat Sto Total Allies 2 | . . 2 . . Largest Group 2 | . . 2 . . Highest-Rated Group 47 | . . 47 . . Highest-Rated Ally 31 | . . 31 . . Total Orders . | . . . . . Ally Attacks 16 | . . 16 . . Total Damage 193 | . . 193 . . Kills 3 | . . 3 . . Allies Corrupted . | . . . . . Allies Melted . | . . . . . Intel | -11 -10 -10 -9 -9 ------- Run | Yrd Mat Min Mat Sto Active Infowar (turns) 1210 | 71 438 294 183 224 Sensors 232 | . . . 158 74 Seismic 1200 | 71 438 294 183 214 Jamming 55 | . . . . 55 Robot Analysis Total . | . . . . . Derelict Logs Recovered 1 | . . 1 . . Drone Launches . | . . . . . Drone Recoveries . | . . . . . Exploration | -11 -10 -10 -9 -9 ------------- Run | Yrd Mat Min Mat Sto Turns Passed 1447 | 142 438 294 183 390 Spaces Moved 865 | 97 200 209 102 257 Core 80 | 6 . . . 74 Treads . | . . . . . Legs 693 | 91 200 209 61 132 Wheels . | . . . . . Hover . | . . . . . Flight 92 | . . . 41 51 Fastest Speed 37 | 50 120 120 90 37 Average Speed 116 | 115 120 129 109 106 Slowest Speed 300 | 120 120 130 290 300 Overloaded Moves . | . . . . . Propulsion Burnouts . | . . . . . Robots Hopped . | . . . . . Potential Cave-ins . | . . . . . Cave-ins Triggered . | . . . . . Exploration Rate (%) 21 | 5 34 37 10 21 Regions Visited 4 Branch Regions 2 Pre-discovered Areas . | . . . . . Known Exits Taken 2 | . 1 . 1 . Unknown Exits Taken 2 | 1 . 1 . . Scrap Searched . | . . . . . Spaces Dug . | . . . . . Terrain Destroyed . | . . . . . Melee . | . . . . . Projectile . | . . . . . AOE . | . . . . . Terrain Rammed . | . . . . . Walls Destroyed . | . . . . . Machines Disabled . | . . . . . Actions | -11 -10 -10 -9 -9 --------- Run | Yrd Mat Min Mat Sto Total 1204 | 114 384 226 152 328 Wait 213 | . 171 8 16 18 Move 861 | 96 199 208 101 257 Hop . | . . . . . Pick Up 19 | 6 2 1 5 5 Fast Attach 20 | 7 . . 5 8 Attach 5 | . . . . 5 Detach 1 | . . . . 1 Swap 6 | . 2 2 1 1 Drop 17 | . 2 2 10 3 Fire 57 | 5 8 4 13 27 Melee . | . . . . . Ram 1 | . . . 1 . Kick 4 | . . 1 . 3 Crush . | . . . . . Escape Stasis . | . . . . . Rewire . | . . . . . Trap . | . . . . . Miscellaneous . | . . . . . Route ------- -11/Scrapyard -10/Materials -10/Mines -9/Materials (discovered 2 exits: *Sto x2) -9/Storage History --------- Turn | Location | Event 9 | -11/Scrapyard | Discovered new exit (range 16) 143 | -11/Scrapyard | Entered Materials 318 | -10/Materials | Build established: Mutant 554 | -10/Materials | Discovered new exit (range 16) 563 | -10/Materials | Identified exit to Mines 581 | -10/Materials | Entered Mines 632 | -10/Mines | Discovered new exit (range 14) 763 | -10/Mines | Assembled infested the area 768 | -10/Mines | Assisted by a Guerilla fighting off Assembled 875 | -10/Mines | Entered Materials 875 | -9/Materials | Evolved 2 slots: Power x1, Utility x1 876 | -9/Materials | Identified exit to Storage 1031 | -9/Materials | Discovered exit to Storage (range 15) 1058 | -9/Materials | Entered Storage 1142 | -9/Storage | Released all parts (3) 1145 | -9/Storage | Core integrity fell below 50% 1172 | -9/Storage | Lost 5 parts (1p2n1u1w) 1205 | -9/Storage | Core integrity fell below 20% 1448 | -9/Storage | Destroyed by Y-45 Defender with Heavy Assault Rifle Last Messages --------------- 01348_ Acquired Hvy. EM Pulse Gun. 01352_ B6W4ZDHCXSZ5HXJH3TRT HI4P 01369_ W-16 Scout sends out distress signal. 01409_ Kicked A-02 Transporter out of the way. 01409_ K-01 Serf cleans the Transfer Shaft. 01412_ |R/PSKS:IGMCUDIYURPIT 01444_ K-01 Serf collects debris. 01445_ Power failure, Imp. Ion Engine shutdown. 01445_ Sml. Laser destroyed. 01446_ G-34 Mercenary destroyed. 01446_ K-01 Serf collects debris. 01448_ Lgt. Armor Plating destroyed. Map ----- +----------------------------------------------------+ | ?????????????????????????????????????????????????? | | ?????????????????????????????????????????????????? | | ?????????????????????????????????????????????????? | | ?????????????????????????????????????????????????? | | ?????????????????????????????????????????????????? | | ?????????????????????????????????????????????????? | | ?????????????????????????????????????????????????? | | ?????????????????????????????????????????????????? | | ?????????????????????????????????????????????????? | | ?????????????????????????????????????????????????? | | ?????????????????????????????????????????????????? | | ?????????????????????????????????????????????????? | | ?????????????????????????????????????????????????? | | ?????????????????????????????????????????????????? | | ?????????????????????????????????????????????????? | | ?????????????????????????????????????????????????? | | ?????????????????????????###?????????????????????? | | ?????????????????????????# ?????????????????????? | | ?????????????????????????# #??#####+####?????????? | | ?????????????????????????#s#??# ! #?????????? | | ?????????????????????????#%#??# #?????????? | | ?????????????????????????#s#??# #?????????? | | ????????????????????????##k##?# % #?????????? | | ??????????????????#######k= #?# #?????????? | | ??????????? k%=* #?# | #?????????? | | ??????????????????# #####@! #?# ##########? | | ???????????????####+######Y##?# ! # #? | | ???????????????# !?# #??# # "" """ #? | | ???????????????# # #######+#+### "T """ #? | | ???????????????? """ = # # "" """ #? | | ???????????????? """ %+%% + #? | | ???????????????? """ """# # #? | | ???????????????# R"# ######### # % #? | | ???????????????# ""?# #???????# # / #? | | ???????????????? ?# #???????# # /[ #? | | ????????????????#######??# #???????# ######## #? | | ?????????????????????????# #???????# #??######## | | ?????????????????????????# #???????# #??# # | | ?????????????????????????# #???????# #??# |# | | ?????????????????????????# #???????# #### # | | ?????????????????????????# #???????#= = + ! !# | | ?????????????????????????# #???????#+##+######## | | ?????????????????????????# #???????# ! #????? | | ?????????????????????????# #???????# =* #????? | | ?????????????????????????# #?#####?# #????? | | ?????????????????????????# #?#]]]#?#] #????? | | ?????????????????????????# #?#]]]#?# = #????? | | ?????????????????????????# ###" "#?# #????? | | ????????????????????????## ##T #?########????? | | ????????????????????????# ###+#######????????? | +----------------------------------------------------+ Best States ------------- Heat Dissipation 28 Energy Generation 19 Energy Capacity 430 Matter Stores 300 Matter Capacity 300 Sight Range 16 Robot Scan Range 15 Terrain Scan Density 10 Jamming Range 14 Armor Coverage 150 Weapon Shielding 33 Evasion (%) 57 Item Schematics ----------------- None Robot Schematics ------------------ None Fabricated ------------ Nothing Repaired ---------- Nothing Alien Tech Used ----------------- None Achievements -------------- None Challenges ------------ None Game ------ Seed ArmoredAmuletImmobilizer Manual? 0 Play Time 00:21:10 Cumulative 10.7 hours Start 2025.05.28 @ 22:08:02 End 2025.05.29 @ 00:02:13 Sessions 3 Manual Loads 0 Difficulty Rogue Special Mode None Game No. 38 Rogue 35 Adventurer 3 Explorer 0 Win Type - Total 0 Types 0/0/0/0/0/0/0/0/0/0 Lore% 10 Gallery% 17 Achievement% 17 Wizard Run 0 Options --------- Layout 0 ASCII 0 Keyboard 1 Movement Arrows Keybinds 0 Fullscreen 2 Font 24/Smallcaps Map View 183x50 Zoom Use 0% Tactical HUD 1 Map Filters NONE Filters NONE Steam 1 RUN: 53ed5b0e-721b-4341-9c82-a7d7ca30a87b